fUSD/lending_fUSD_20251113
["ID","MTS","AMOUNT","RATE_DAILY","PERIOD"]
[393803775,1763008244369,-41590.79605352,0.00018,2]
[393803776,1763008244379,-503.352892,0.00018,2]
[393803777,1763008244388,-503.352892,0.00018,2]
[393803778,1763008244397,-503.352892,0.00018,2]
[393803779,1763008244572,-503.352892,0.00018,2]
[393803780,1763008244582,-503.352892,0.00018,2]
[393803781,1763008244591,-503.352892,0.00018,2]
[393803782,1763008244600,-503.352892,0.00018,2]
[393803783,1763008244610,-503.352892,0.00018,2]
[393803784,1763008244619,-271.08281761,0.00018021,2]
[393803785,1763008244628,-220.24098133,0.00018026,2]
[393803786,1763008244638,-500.0,0.00018026,2]
[393803787,1763008244647,-500.0,0.00018026,2]
[393803788,1763008244657,-150.0,0.00018026,2]
[393803789,1763008244666,-216.9665417,0.00018026,2]
[393803790,1763008244675,-500.0,0.00018026,2]
[393803791,1763008244684,-500.0,0.00018026,2]
[393803792,1763008244694,-500.0,0.00018026,2]
[393803793,1763008244703,-150.0,0.00018026,2]
[393803794,1763008244715,-500.0,0.00018026,2]
[393803795,1763008244724,-995.0,0.00018026,2]
[393803796,1763008244733,-565.74348878,0.00018026,2]
[393803797,1763008244743,-150.0,0.00018026,2]
[393803798,1763008244752,-500.0,0.00018054,2]
[393803799,1763008244762,-500.0,0.00018054,2]
[393803800,1763008244773,-200.0,0.00018054,2]
[393803801,1763008244782,-500.0,0.00018054,2]
[393803802,1763008244791,-500.0,0.00018054,2]
[393803803,1763008244800,-500.0,0.00018054,2]
[393803804,1763008244809,-150.0,0.00018054,2]
[393803805,1763008244818,-500.0,0.00018054,2]
[393803806,1763008244829,-995.0,0.00018054,2]
[393803807,1763008244839,-200.0,0.00018054,2]
[393803808,1763008244849,-500.0,0.00018081,2]
[393803809,1763008244859,-500.0,0.00018081,2]
[393803810,1763008244868,-500.0,0.00018081,2]
[393803811,1763008244877,-500.0,0.00018081,2]
[393803812,1763008244886,-500.0,0.00018081,2]
[393803813,1763008244896,-150.0,0.00018081,2]
[393803814,1763008244905,-500.0,0.00018081,2]
[393803815,1763008244914,-995.0,0.00018081,2]
[393803816,1763008244923,-223.69,0.00018082,2]
[393803817,1763008244933,-500.0,0.00018109,2]
[393803818,1763008244943,-500.0,0.00018109,2]
[393803819,1763008244952,-500.0,0.00018109,2]
[393803820,1763008244962,-500.0,0.00018109,2]
[393803821,1763008244971,-500.0,0.00018109,2]
[393803822,1763008244980,-150.0,0.00018109,2]
[393803823,1763008244990,-500.0,0.00018109,2]
[393803824,1763008244999,-995.0,0.00018109,2]
[393803825,1763008245008,-500.0,0.0001811,2]
[393803826,1763008245018,-500.0,0.00018136,2]
[393803827,1763008245028,-500.0,0.00018136,2]
[393803828,1763008245038,-500.0,0.00018136,2]
[393803829,1763008245047,-500.0,0.00018136,2]
[393803830,1763008245058,-500.0,0.00018136,2]
[393803831,1763008245068,-250.0,0.00018136,2]
[393803832,1763008245082,-500.0,0.00018136,2]
[393803833,1763008245092,-995.0,0.00018136,2]
[393803834,1763008245101,-500.0,0.00018163,2]
[393803835,1763008245111,-500.0,0.00018163,2]
[393803836,1763008245121,-500.0,0.00018163,2]
[393803837,1763008245131,-500.0,0.00018163,2]
[393803838,1763008245141,-500.0,0.00018163,2]
[393803839,1763008245152,-500.0,0.00018163,2]
[393803840,1763008245162,-995.0,0.00018163,2]
[393803841,1763008245171,-311.4,0.00018182,2]
[393803842,1763008245181,-500.0,0.00018191,2]
[393803843,1763008245190,-500.0,0.00018191,2]
[393803844,1763008245200,-488.51810773,0.00018191,2]
[393803845,1763008245209,-500.0,0.00018191,2]
[393803846,1763008245218,-500.0,0.00018191,2]
[393803847,1763008245227,-500.0,0.00018191,2]
[393803848,1763008245237,-995.0,0.00018191,2]
[393803849,1763008245247,-500.0,0.00018218,2]
[393803850,1763008245257,-500.0,0.00018218,2]
[393803851,1763008245266,-500.0,0.00018218,2]
[393803852,1763008245275,-500.0,0.00018218,2]
[393803853,1763008245284,-358.29192102,0.00018218,2]
[393803854,1763008245294,-995.0,0.00018218,2]
[393803855,1763008245304,-2178.82174,0.0001823,2]
[393803856,1763008245314,-500.0,0.00018246,2]
[393803857,1763008245323,-500.0,0.00018246,2]
[393803858,1763008245334,-500.0,0.00018246,2]
[393803859,1763008245343,-500.0,0.00018246,2]
[393803860,1763008245352,-995.0,0.00018246,2]
[393803861,1763008245361,-166.66,0.00018262,2]
[393803862,1763008245371,-327.24608286,0.00018273,2]
[393803863,1763008245380,-500.0,0.00018273,2]
[393803864,1763008245389,-500.0,0.00018273,2]
[393803865,1763008245399,-500.0,0.00018273,2]
[393803866,1763008245408,-995.0,0.00018273,2]
[393803867,1763008245418,-507.13,0.00018273,2]
[393803868,1763008245428,-2153.57,0.000183,2]
[393803869,1763008245437,-366.24845379,0.000183,2]
[393803870,1763008245447,-500.0,0.000183,2]
[393803871,1763008245456,-500.0,0.000183,2]
[393803872,1763008245466,-995.0,0.000183,2]
[393803873,1763008245475,-500.0,0.00018328,2]
[393803874,1763008245484,-500.0,0.00018328,2]
[393803875,1763008245493,-995.0,0.00018328,2]
[393803876,1763008245503,-500.0,0.00018355,2]
[393803877,1763008245512,-500.0,0.00018355,2]
[393803878,1763008245521,-995.0,0.00018355,2]
[393803879,1763008245532,-447.44188538,0.00018383,2]
[393803880,1763008245542,-500.0,0.00018383,2]
[393803881,1763008245552,-995.0,0.00018383,2]
[393803882,1763008245562,-503.352892,0.00018384,2]
[393803883,1763008245571,-503.352892,0.00018384,2]
[393803884,1763008245581,-503.352892,0.00018384,2]
[393803885,1763008245590,-503.352892,0.00018384,2]
[393803886,1763008245599,-2000.0,0.000184,2]
[393803887,1763008245608,-219.46,0.00018408,2]
[393803888,1763008245618,-500.0,0.0001841,2]
[393803889,1763008245627,-995.0,0.0001841,2]
[393803890,1763008245636,-150.0,0.0001842,2]
[393803891,1763008245646,-353.38270372,0.00018437,2]
[393803892,1763008245655,-995.0,0.00018437,2]
[393803893,1763008245664,-200.0,0.0001846,2]
[393803894,1763008245674,-995.0,0.00018465,2]
[393803895,1763008245683,-995.0,0.00018492,2]
[393803896,1763008245692,-995.0,0.0001852,2]
[393803897,1763008245702,-995.0,0.00018547,2]
[393803898,1763008245711,-507.13,0.00018547,2]
[393803899,1763008245720,-500.0,0.0001855,2]
[393803900,1763008245730,-420.0,0.00018567,2]
[393803901,1763008245739,-995.0,0.00018574,2]
[393803902,1763008245749,-995.0,0.00018602,2]
[393803903,1763008245758,-3993.68,0.00018607,2]
[393803904,1763008245768,-1000.33659634,0.00018629,2]
[393803905,1763008245777,-166.66,0.00018631,2]
[393803906,1763008245786,-501.35,0.00018633,2]
[393803907,1763008245795,-1680.0,0.00018659,2]
[393803908,1763008245808,-250.0,0.000187,2]
[393803909,1763008245818,-2178.82175,0.0001873,2]
[393803910,1763008245827,-223.69,0.0001876,2]
[393803911,1763008245837,-2153.57,0.00018798,2]
[393803912,1763008245846,-151.02,0.000188,2]
[393803913,1763008245855,-151.02,0.000188,2]
[393803914,1763008245865,-151.02,0.000188,2]
[393803915,1763008245875,-151.02,0.000188,2]
[393803916,1763008245884,-507.13,0.00018821,2]
[393803917,1763008245893,-166.66,0.00019,2]
[393803918,1763008245903,-687.68595264,0.00019,2]
[393803919,1763008245912,-9738.29435649,0.00019,2]
[393803920,1763008245922,-300.0,0.00019,2]
[393803922,1763008245931,-1000.0,0.00019013,2]
[393803924,1763008245941,-507.15906678,0.00019095,2]
[393803925,1763008245950,-271.08281761,0.00019141,2]
[393803926,1763008245960,-3608.021777,0.00019178,2]
[393803927,1763008245970,-3608.021777,0.00019178,2]
[393803928,1763008245980,-3608.021777,0.00019178,2]
[393803929,1763008245990,-3608.021777,0.00019178,2]
[393803930,1763008246000,-2178.82174,0.0001923,2]
[393803931,1763008246009,-151.0,0.00019256,7]
[393803932,1763008246018,-3608.021777,0.00019256,7]
[393803933,1763008246027,-3608.021777,0.00019256,7]
[393803934,1763008246037,-3608.021777,0.00019256,7]
[393803936,1763008246046,-3608.021777,0.00019256,7]
[393803938,1763008246058,-2153.57,0.00019295,2]
[393803940,1763008246069,-166.66,0.00019369,2]
[393803942,1763008246081,-500.0,0.00019369,2]
[393803944,1763008246091,-223.69,0.00019438,2]
[393803946,1763008246100,-250.0,0.00019591,2]
[393803949,1763008246111,-501.35,0.00019668,2]
[393803951,1763008246121,-200.0,0.00019708,2]
[393803953,1763008246130,-2178.82175,0.0001973,2]
[393803954,1763008246139,-40807.77209171,0.0001999,2]
[393803956,1763008246150,-503.352892,0.0001999,7]
[393803958,1763008246159,-503.352892,0.0001999,7]
[393803960,1763008246169,-503.352892,0.0001999,7]
[393803961,1763008246178,-503.352892,0.0001999,7]
[393803962,1763008246187,-9138.55010614,0.0002,5]
[393803963,1763008246196,-1000.0,0.0002,7]
[393803964,1763008246205,-223.69,0.00020116,2]
[393803965,1763008246215,-374.61,0.00020187,2]
[393803966,1763008246223,-2139.73,0.00020227,2]
[393803967,1763008246232,-2178.82174,0.0002023,2]
[393803968,1763008246241,-271.08281761,0.00020262,2]
[393803969,1763008246251,-587.0,0.00020279,2]
[393803970,1763008246260,-1657.0585844,0.00020379,2]
[393803971,1763008246270,-300.0,0.00020421,2]
[393803972,1763008246279,-311.4,0.00020454,2]
[393803973,1763008246288,-2351.0,0.00020481,2]
[393803974,1763008246297,-592.63795541,0.000205,2]
[393803975,1763008246308,-151.0,0.00020548,7]
[393803976,1763008246317,-151.0,0.00020548,7]
[393803977,1763008246327,-151.0,0.00020548,7]
[393803978,1763008246336,-151.0,0.00020548,7]
[393803979,1763008246346,-151.0,0.00020548,7]
[393803980,1763008246355,-151.0,0.00020548,7]
[393803981,1763008246365,-280.928827,0.00020548,7]
[393803982,1763008246374,-3608.021777,0.00020548,7]
[393803983,1763008246383,-3608.021777,0.00020548,7]
[393803984,1763008246392,-3608.021777,0.00020548,7]
[393803985,1763008246401,-3608.021777,0.00020548,7]
[393803986,1763008246411,-501.35,0.00020703,2]
[393803987,1763008246420,-500.0,0.00020739,2]
[393803988,1763008246430,-223.69,0.00020795,2]
[393803989,1763008246439,-150.0,0.00020882,2]
[393803990,1763008246448,-150.0,0.00020882,2]
[393803991,1763008246458,-369.7397473,0.00020911,2]
[393803992,1763008246467,-2811.2408576,0.0002092,2]
[393803993,1763008246476,-6353.55687192,0.00021,2]
[393803994,1763008246485,-350.0,0.00021,2]
[393803995,1763008246495,-166.66,0.00021044,2]
[393803996,1763008246504,-500.0,0.00021073,2]
[393803997,1763008246513,-200.0,0.00021073,2]
[393803998,1763008246522,-300.0,0.00021077,2]
[393803999,1763008246531,-151.0,0.00021078,7]
[393804000,1763008246541,-151.0,0.00021078,7]
[393804001,1763008246550,-151.0,0.00021078,7]
[393804002,1763008246561,-3608.021777,0.00021078,7]
[393804003,1763008246570,-3608.021777,0.00021078,7]
[393804004,1763008246580,-3608.021777,0.00021078,7]
[393804005,1763008246589,-3608.021777,0.00021078,7]
[393804006,1763008246598,-151.0,0.00021078,7]
[393804007,1763008246608,-503.352892,0.00021078,7]
[393804008,1763008246617,-503.352892,0.00021078,7]
[393804009,1763008246627,-503.352892,0.00021078,7]
[393804010,1763008246636,-503.352884,0.00021078,7]
[393804011,1763008246645,-41762.94216,0.00021078,2]
[393804012,1763008246654,-65328.5353975,0.00021078,2]
[393804013,1763008246663,-1000.0,0.00021126,2]
[393804014,1763008246674,-271.08281761,0.00021382,2]
[393804015,1763008246683,-20365.18722524,0.000215,2]
[393804016,1763008246692,-220.20831545,0.000215,2]
[393804017,1763008246702,-627.2726227,0.00021573,2]
[393804018,1763008246712,-150.3854906,0.00021639,2]
[393804019,1763008246721,-250.313723,0.00021738,7]
[393804020,1763008246735,-166.66,0.00021738,2]
[393804021,1763008246745,-501.35,0.00021738,2]
[393804022,1763008246755,-208.86994665,0.00021758,2]
[393804023,1763008246764,-9318.5719724,0.00021765,2]
[393804024,1763008246774,-14576.7665655,0.00021765,2]
[393804025,1763008246783,-5000.0,0.00021918,2]
[393804026,1763008246793,-5523.58,0.00022,7]
[393804027,1763008246804,-2000.0,0.000221,2]
[393804028,1763008246814,-460.98736975,0.00022109,2]
[393804029,1763008246823,-168.0,0.00022149,2]
[393804030,1763008246832,-169.00794124,0.00022199,2]
[393804031,1763008246841,-166.66,0.00022433,2]
[393804032,1763008246853,-1329.0,0.00022481,2]
[393804033,1763008246862,-271.08281761,0.00022503,2]
[393804034,1763008246871,-311.4,0.00022727,2]
[393804035,1763008246880,-501.35,0.00022774,2]
[393804036,1763008246889,-162.09917098,0.00022944,2]
[393804037,1763008246899,-3608.021777,0.00022944,7]
[393804038,1763008246907,-3608.021777,0.00022944,7]
[393804039,1763008246917,-3608.021777,0.00022944,7]
[393804040,1763008246926,-3608.021783,0.00022944,7]
[393804041,1763008246935,-166.66,0.00023128,2]
[393804042,1763008246944,-1000.0,0.00023238,2]
[393804043,1763008246954,-200.0,0.000235,2]
[393804044,1763008246962,-271.08281761,0.00023623,2]
[393804045,1763008246971,-501.35,0.00023809,2]
[393804046,1763008246980,-166.66,0.00023822,2]
[393804047,1763008246990,-171.4145795,0.00023868,2]
[393804048,1763008246999,-1011.55444144,0.00024,2]
[393804049,1763008247008,-1042.06171515,0.00024,14]
[393804050,1763008247018,-3600.0,0.00024,2]
[393804051,1763008247028,-15573.62681979,0.00024,2]
[393804052,1763008247037,-4015.77,0.00024041,2]
[393804053,1763008247047,-414.19538437,0.0002421,2]
[393804054,1763008247057,-212.16,0.00024415,2]
[393804055,1763008247067,-166.66,0.00024517,2]
[393804056,1763008247079,-162.31339977,0.0002455,15]
[393804057,1763008247088,-591.92719779,0.0002465,2]
[393804058,1763008247098,-1000.0,0.00024658,2]
[393804059,1763008247111,-1132.74,0.00024658,30]
[393804060,1763008247120,-173.73,0.00024658,2]
[393804061,1763008247129,-5523.58,0.000247,7]
[393804062,1763008247138,-271.08281761,0.00024744,2]
[393804063,1763008247149,-258803.46552,0.000248,3]
[393804064,1763008247158,-501.35,0.00024844,2]
[393804065,1763008247167,-150.0,0.00024873,2]
[393804066,1763008247177,-300.0,0.000249,9]
[393804067,1763008247186,-38891.8387302,0.000249,3]
[393804068,1763008247196,-1051.35685065,0.00025,3]
[393804069,1763008247205,-1000.0,0.00025351,2]
[393804070,1763008247214,-250.0,0.00025421,2]
[393804071,1763008247224,-162.09917098,0.00025466,2]
[393804072,1763008247233,-1502.0,0.000258,2]
[393804073,1763008247243,-501.35,0.00025879,2]
[393804074,1763008247252,-151.4064077,0.00025901,2]
[393804075,1763008247261,-350.0,0.00025968,2]
[393804076,1763008247270,-150.3854906,0.00026378,2]
[393804077,1763008247280,-640.0,0.00026384,2]
[393804078,1763008247289,-450.0,0.00026516,2]
[393804079,1763008247299,-374.61,0.00026676,2]
[393804080,1763008247310,-501.35,0.00026914,2]
[393804081,1763008247319,-478.69779641,0.00027061,2]
[393804082,1763008247328,-550.0,0.00027064,2]
[393804083,1763008247337,-169.00794124,0.00027297,2]
[393804084,1763008247346,-500.0,0.00027397,2]
[393804085,1763008247355,-150.0,0.00027397,2]
[393804086,1763008247364,-500.0,0.00027397,2]
[393804087,1763008247373,-500.0,0.00027397,2]
[393804088,1763008247382,-500.0,0.00027397,2]
[393804089,1763008247391,-500.0,0.00027397,2]
[393804090,1763008247400,-500.0,0.00027397,2]
[393804091,1763008247410,-500.0,0.00027397,2]
[393804092,1763008247419,-500.0,0.00027397,2]
[393804093,1763008247428,-500.0,0.00027397,2]
[393804094,1763008247438,-500.0,0.00027397,2]
[393804095,1763008247447,-500.0,0.00027397,2]
[393804096,1763008247457,-500.0,0.00027397,2]
[393804097,1763008247467,-500.0,0.00027397,2]
[393804098,1763008247607,-500.0,0.00027397,2]
[393804099,1763008247617,-500.0,0.00027397,2]
[393804100,1763008247627,-500.0,0.00027397,2]
[393804101,1763008247636,-500.0,0.00027397,2]
[393804102,1763008247645,-500.0,0.00027397,2]
[393804103,1763008247654,-500.0,0.00027397,2]
[393804104,1763008247663,-500.0,0.00027397,2]
[393804105,1763008247672,-500.0,0.00027397,2]
[393804106,1763008247682,-587.69802353,0.00027397,2]
[393804107,1763008247692,-2516.06,0.00027397,2]
[393804108,1763008247702,-151.0,0.00027397,31]
[393804109,1763008247712,-259.160155,0.00027397,31]
[393804110,1763008247722,-151.0,0.00027397,31]
[393804111,1763008247731,-151.0,0.00027397,31]
[393804112,1763008247740,-151.0,0.00027397,31]
[393804113,1763008247749,-151.0,0.00027397,31]
[393804114,1763008247759,-268.373011,0.00027397,31]
[393804115,1763008247768,-151.0,0.00027397,31]
[393804116,1763008247778,-158.344867,0.00027397,31]
[393804117,1763008247787,-156.52151,0.00027397,31]
[393804118,1763008247797,-151.0,0.00027397,31]
[393804119,1763008247806,-151.0,0.00027397,31]
[393804120,1763008247815,-151.0,0.00027397,31]
[393804121,1763008247825,-151.0,0.00027397,31]
[393804122,1763008247835,-151.0,0.00027397,31]
[393804123,1763008247844,-151.0,0.00027397,31]
[393804124,1763008247854,-151.0,0.00027397,31]
[393804125,1763008247864,-285.51414,0.00027397,31]
[393804126,1763008247874,-151.0,0.00027397,31]
[393804127,1763008247883,-151.0,0.00027397,31]
[393804128,1763008247892,-151.0,0.00027397,31]
[393804129,1763008247901,-151.0,0.00027397,31]
[393804130,1763008247910,-151.0,0.00027397,31]
[393804131,1763008247920,-151.0,0.00027397,31]
[393804132,1763008247929,-151.0,0.00027397,31]
[393804133,1763008247938,-151.0,0.00027397,31]
[393804134,1763008247948,-151.0,0.00027397,31]
[393804135,1763008247957,-236.908527,0.00027397,31]
[393804136,1763008247966,-151.765504,0.00027397,31]
[393804137,1763008247976,-151.765504,0.00027397,31]
[393804138,1763008247985,-151.765504,0.00027397,31]
[393804139,1763008247995,-151.765504,0.00027397,31]
[393804140,1763008248005,-151.765504,0.00027397,31]
[393804141,1763008248015,-151.765504,0.00027397,31]
[393804142,1763008248025,-151.765504,0.00027397,31]
[393804143,1763008248035,-151.765504,0.00027397,31]
[393804144,1763008248046,-151.765504,0.00027397,31]
[393804145,1763008248059,-151.765504,0.00027397,31]
[393804146,1763008248069,-151.765504,0.00027397,31]
[393804147,1763008248083,-151.765504,0.00027397,31]
[393804148,1763008248093,-151.765504,0.00027397,31]
[393804149,1763008248103,-151.765504,0.00027397,31]
[393804150,1763008248114,-151.765504,0.00027397,31]
[393804151,1763008248124,-151.765504,0.00027397,31]
[393804152,1763008248133,-151.765504,0.00027397,31]
[393804153,1763008248144,-151.765504,0.00027397,31]
[393804154,1763008248155,-151.765504,0.00027397,31]
[393804155,1763008248164,-151.0,0.00027397,31]
[393804156,1763008248174,-151.765502,0.00027397,31]
[393804157,1763008248183,-151.0,0.00027397,31]
[393804158,1763008248193,-154.061339,0.00027397,31]
[393804159,1763008248203,-151.0,0.00027397,31]
[393804160,1763008248212,-151.0,0.00027397,31]
[393804161,1763008248222,-151.0,0.00027397,31]
[393804162,1763008248231,-151.0,0.00027397,31]
[393804163,1763008248241,-151.0,0.00027397,31]
[393804164,1763008248250,-298.686156,0.00027397,31]
[393804165,1763008248260,-278.944442,0.00027397,31]
[393804166,1763008248269,-154.077389,0.00027397,31]
[393804167,1763008248278,-151.0,0.00027397,31]
[393804168,1763008248288,-151.0,0.00027397,31]
[393804169,1763008248297,-151.0,0.00027397,31]
[393804170,1763008248310,-151.0,0.00027397,31]
[393804171,1763008248319,-151.0,0.00027397,31]
[393804172,1763008248329,-151.0,0.00027397,31]
[393804173,1763008248338,-151.0,0.00027397,31]
[393804174,1763008248347,-151.0,0.00027397,31]
[393804175,1763008248356,-151.0,0.00027397,31]
[393804176,1763008248366,-151.0,0.00027397,31]
[393804177,1763008248375,-151.0,0.00027397,31]
[393804178,1763008248385,-151.0,0.00027397,31]
[393804179,1763008248395,-151.0,0.00027397,31]
[393804180,1763008248405,-151.0,0.00027397,31]
[393804181,1763008248414,-151.0,0.00027397,31]
[393804182,1763008248423,-151.0,0.00027397,31]
[393804183,1763008248433,-270.889744,0.00027397,31]
[393804184,1763008248443,-151.0,0.00027397,31]
[393804185,1763008248453,-151.0,0.00027397,31]
[393804186,1763008248463,-151.0,0.00027397,31]
[393804187,1763008248472,-158.238625,0.00027397,31]
[393804188,1763008248481,-151.0,0.00027397,31]
[393804189,1763008248492,-256.705688,0.00027397,31]
[393804190,1763008248501,-153.93166,0.00027397,31]
[393804191,1763008248510,-153.673992,0.00027397,31]
[393804192,1763008248519,-153.24881,0.00027397,31]
[393804193,1763008248530,-151.0,0.00027397,31]
[393804194,1763008248539,-151.0,0.00027397,31]
[393804195,1763008248548,-151.0,0.00027397,31]
[393804196,1763008248560,-151.0,0.00027397,31]
[393804197,1763008248569,-260.531521,0.00027397,31]
[393804198,1763008248578,-152.961585,0.00027397,31]
[393804199,1763008248587,-152.956526,0.00027397,31]
[393804200,1763008248596,-152.956526,0.00027397,31]
[393804201,1763008248604,-152.956526,0.00027397,31]
[393804202,1763008248614,-152.956526,0.00027397,31]
[393804203,1763008248623,-152.956526,0.00027397,31]
[393804204,1763008248632,-152.956526,0.00027397,31]
[393804205,1763008248641,-152.956526,0.00027397,31]
[393804206,1763008248650,-152.956526,0.00027397,31]
[393804207,1763008248659,-152.956526,0.00027397,31]
[393804208,1763008248668,-152.956526,0.00027397,31]
[393804209,1763008248677,-152.956526,0.00027397,31]
[393804210,1763008248685,-152.956526,0.00027397,31]
[393804211,1763008248694,-152.956526,0.00027397,31]
[393804212,1763008248703,-152.956526,0.00027397,31]
[393804213,1763008248712,-152.956526,0.00027397,31]
[393804214,1763008248721,-152.956526,0.00027397,31]
[393804215,1763008248730,-152.956526,0.00027397,31]
[393804216,1763008248739,-152.956526,0.00027397,31]
[393804217,1763008248748,-152.956526,0.00027397,31]
[393804218,1763008248757,-152.956527,0.00027397,31]
[393804219,1763008248766,-160.443608,0.00027397,31]
[393804220,1763008248775,-160.443608,0.00027397,31]
[393804221,1763008248784,-160.443608,0.00027397,31]
[393804222,1763008248793,-160.443608,0.00027397,31]
[393804223,1763008248803,-160.443608,0.00027397,31]
[393804224,1763008248812,-160.443608,0.00027397,31]
[393804225,1763008248822,-160.443608,0.00027397,31]
[393804226,1763008248831,-160.443608,0.00027397,31]
[393804227,1763008248841,-160.443608,0.00027397,31]
[393804228,1763008248850,-160.443608,0.00027397,31]
[393804229,1763008248859,-160.443608,0.00027397,31]
[393804230,1763008248868,-160.443608,0.00027397,31]
[393804231,1763008248877,-160.443608,0.00027397,31]
[393804232,1763008248886,-160.443608,0.00027397,31]
[393804233,1763008248896,-160.443608,0.00027397,31]
[393804234,1763008248905,-160.443608,0.00027397,31]
[393804235,1763008248915,-160.443608,0.00027397,31]
[393804236,1763008248924,-160.443608,0.00027397,31]
[393804237,1763008248933,-160.443608,0.00027397,31]
[393804238,1763008248942,-160.44361,0.00027397,31]
[393804239,1763008248951,-151.0,0.00027397,31]
[393804240,1763008248961,-151.0,0.00027397,31]
[393804241,1763008248970,-151.0,0.00027397,31]
[393804242,1763008248980,-151.0,0.00027397,31]
[393804243,1763008248989,-343.45055,0.00027397,31]
[393804244,1763008248999,-343.45055,0.00027397,31]
[393804245,1763008249008,-343.45055,0.00027397,31]
[393804246,1763008249018,-343.45055,0.00027397,31]
[393804247,1763008249028,-343.45055,0.00027397,31]
[393804248,1763008249038,-343.45055,0.00027397,31]
[393804249,1763008249047,-343.45055,0.00027397,31]
[393804250,1763008249059,-343.45055,0.00027397,31]
[393804251,1763008249068,-343.45055,0.00027397,31]
[393804252,1763008249081,-343.45055,0.00027397,31]
[393804253,1763008249090,-343.45055,0.00027397,31]
[393804254,1763008249099,-343.45055,0.00027397,31]
[393804255,1763008249110,-343.45055,0.00027397,31]
[393804256,1763008249119,-343.45055,0.00027397,31]
[393804257,1763008249129,-343.45055,0.00027397,31]
[393804258,1763008249138,-343.45055,0.00027397,31]
[393804259,1763008249149,-343.45055,0.00027397,31]
[393804260,1763008249158,-343.45055,0.00027397,31]
[393804261,1763008249167,-343.45055,0.00027397,31]
[393804262,1763008249176,-343.450555,0.00027397,31]
[393804263,1763008249186,-151.0,0.00027397,31]
[393804264,1763008249196,-151.0,0.00027397,31]
[393804265,1763008249206,-151.0,0.00027397,31]
[393804266,1763008249215,-151.0,0.00027397,31]
[393804267,1763008249225,-151.0,0.00027397,31]
[393804268,1763008249236,-151.0,0.00027397,31]
[393804269,1763008249247,-273.330726,0.00027397,31]
[393804270,1763008249256,-151.0,0.00027397,31]
[393804271,1763008249265,-151.0,0.00027397,31]
[393804272,1763008249275,-151.0,0.00027397,31]
[393804273,1763008249283,-151.0,0.00027397,31]
[393804274,1763008249292,-151.0,0.00027397,31]
[393804275,1763008249304,-151.0,0.00027397,31]
[393804276,1763008249314,-151.0,0.00027397,31]
[393804277,1763008249323,-151.0,0.00027397,31]
[393804278,1763008249332,-151.0,0.00027397,31]
[393804279,1763008249342,-151.0,0.00027397,31]
[393804280,1763008249351,-151.0,0.00027397,31]
[393804281,1763008249360,-161.513272,0.00027397,31]
[393804282,1763008249369,-151.0,0.00027397,31]
[393804283,1763008249380,-151.0,0.00027397,31]
[393804284,1763008249389,-151.0,0.00027397,31]
[393804285,1763008249399,-151.0,0.00027397,31]
[393804286,1763008249408,-151.0,0.00027397,31]
[393804287,1763008249417,-151.0,0.00027397,31]
[393804288,1763008249427,-183.586026,0.00027397,31]
[393804289,1763008249437,-151.0,0.00027397,31]